[Event "Titled Tuesday Blitz November 15 Early 2022"]
[White "Sanchez Enriquez, Oscar Gerardo"]
[Black "Quintiliano Pinto, Renato R."]
[WhiteFideId "5106311"]
[BlackFideId "2117568"]
[WhiteElo "2375"]
[BlackElo "2472"]
[Result "1/2-1/2"]
[Round "04"]
[TimeControl "180+1"]
[Date "2022.11.16"]
[WhiteClock "0:01:11"]
[BlackClock "0:01:19"]

1. e4 {[%clk 0:03:00]}  e6 {[%clk 0:03:00]} 2. d4 {[%clk 0:03:00]}  d5 {[%clk 0:03:00]} 3. Nc3 {[%clk 0:03:01]}  Nf6 {[%clk 0:03:00]} 4. Bg5 {[%clk 0:03:00]}  dxe4 {[%clk 0:03:00]} 5. Nxe4 {[%clk 0:03:01]}  Be7 {[%clk 0:03:01]} 6. Bxf6 {[%clk 0:03:01]}  Bxf6 {[%clk 0:03:01]} 7. Nf3 {[%clk 0:03:01]}  Nd7 {[%clk 0:03:01]} 8. Bc4 {[%clk 0:03:02]}  c5 {[%clk 0:02:56]} 9. c3 {[%clk 0:02:26]}  cxd4 {[%clk 0:02:54]} 10. Nxf6+ {[%clk 0:02:26]}  Qxf6 {[%clk 0:02:52]} 11. Qxd4 {[%clk 0:02:24]}  Qxd4 {[%clk 0:02:51]} 12. Nxd4 {[%clk 0:02:25]}  a6 {[%clk 0:02:51]} 13. Be2 {[%clk 0:02:20]}  g6 {[%clk 0:02:49]} 14. O-O-O {[%clk 0:02:18]}  Ke7 {[%clk 0:02:49]} 15. Rhe1 {[%clk 0:02:16]}  Rd8 {[%clk 0:02:48]} 16. f4 {[%clk 0:02:14]}  Nb6 {[%clk 0:02:45]} 17. Bf3 {[%clk 0:02:14]}  Rb8 {[%clk 0:02:44]} 18. g3 {[%clk 0:02:11]}  h5 {[%clk 0:02:40]} 19. b3 {[%clk 0:02:10]}  Bd7 {[%clk 0:02:39]} 20. c4 {[%clk 0:02:10]}  Rdc8 {[%clk 0:02:38]} 21. Kb2 {[%clk 0:02:10]}  Rc7 {[%clk 0:02:38]} 22. Re5 {[%clk 0:02:06]}  Be8 {[%clk 0:02:25]} 23. Re2 {[%clk 0:02:04]}  Kf6 {[%clk 0:02:22]} 24. Red2 {[%clk 0:02:03]}  Nd7 {[%clk 0:02:21]} 25. a4 {[%clk 0:01:52]}  Nc5 {[%clk 0:02:19]} 26. h4 {[%clk 0:01:45]}  b5 {[%clk 0:02:16]} 27. cxb5 {[%clk 0:01:45]}  axb5 {[%clk 0:02:17]} 28. a5 {[%clk 0:01:45]}  Rd8 {[%clk 0:01:51]} 29. Nc2 {[%clk 0:01:41]}  Rdc8 {[%clk 0:01:45]} 30. Nb4 {[%clk 0:01:38]}  Ra7 {[%clk 0:01:43]} 31. Ra1 {[%clk 0:01:32]}  Ke7 {[%clk 0:01:42]} 32. Rc2 {[%clk 0:01:30]}  Rac7 {[%clk 0:01:37]} 33. Rac1 {[%clk 0:01:25]}  Kd6 {[%clk 0:01:37]} 34. a6 {[%clk 0:01:24]}  Bd7 {[%clk 0:01:27]} 35. Rd1+ {[%clk 0:01:20]}  Ke7 {[%clk 0:01:26]} 36. Rdc1 {[%clk 0:01:20]}  Kd6 {[%clk 0:01:25]} 37. Rd1+ {[%clk 0:01:20]}  Ke7 {[%clk 0:01:25]} 38. Rdc1 {[%clk 0:01:11]}  Kd6 {[%clk 0:01:19]} 1/2-1/2


[Site "https://www.chess.com"]

[Event "Titled Tuesday Blitz November 15 Early 2022"]
[White "Sarana, Alexey"]
[Black "Garcia Ramos, Daniel"]
[WhiteFideId "24133795"]
[BlackFideId "32010311"]
[WhiteElo "2708"]
[BlackElo "2357"]
[Result "1-0"]
[Round "04"]
[TimeControl "180+1"]
[Date "2022.11.16"]
[WhiteClock "0:01:45"]
[BlackClock "0:00:24"]

1. c4 {[%clk 0:02:59]}  e6 {[%clk 0:02:59]} 2. Nc3 {[%clk 0:02:58]}  d5 {[%clk 0:03:00]} 3. d4 {[%clk 0:02:58]}  Nf6 {[%clk 0:03:00]} 4. cxd5 {[%clk 0:02:59]}  exd5 {[%clk 0:03:01]} 5. Bf4 {[%clk 0:02:59]}  c6 {[%clk 0:02:54]} 6. e3 {[%clk 0:02:59]}  Bd6 {[%clk 0:02:50]} 7. Bxd6 {[%clk 0:02:58]}  Qxd6 {[%clk 0:02:51]} 8. Bd3 {[%clk 0:02:58]}  O-O {[%clk 0:02:51]} 9. Nge2 {[%clk 0:02:59]}  Re8 {[%clk 0:02:51]} 10. Qd2 {[%clk 0:02:58]}  Nbd7 {[%clk 0:02:48]} 11. O-O {[%clk 0:02:55]}  Nf8 {[%clk 0:02:48]} 12. f3 {[%clk 0:02:55]}  Ne6 {[%clk 0:02:42]} 13. Rad1 {[%clk 0:02:48]}  c5 {[%clk 0:02:40]} 14. Bc2 {[%clk 0:02:46]}  Bd7 {[%clk 0:02:35]} 15. dxc5 {[%clk 0:02:27]}  Qxc5 {[%clk 0:02:32]} 16. Bb3 {[%clk 0:02:25]}  Bc6 {[%clk 0:02:10]} 17. Rfe1 {[%clk 0:02:23]}  a5 {[%clk 0:02:02]} 18. a3 {[%clk 0:02:22]}  Qb6 {[%clk 0:01:57]} 19. Ba2 {[%clk 0:02:21]}  Re7 {[%clk 0:01:51]} 20. Nd4 {[%clk 0:02:19]}  Nxd4 {[%clk 0:01:47]} 21. Qxd4 {[%clk 0:02:14]}  Qxb2 {[%clk 0:01:12]} 22. Nxd5 {[%clk 0:02:12]}  Qxa2 {[%clk 0:00:56]} 23. Nxe7+ {[%clk 0:02:11]}  Kh8 {[%clk 0:00:57]} 24. Nf5 {[%clk 0:02:06]}  Qxa3 {[%clk 0:00:51]} 25. e4 {[%clk 0:01:59]}  a4 {[%clk 0:00:44]} 26. e5 {[%clk 0:01:59]}  Nd5 {[%clk 0:00:42]} 27. e6 {[%clk 0:01:59]}  Qc3 {[%clk 0:00:40]} 28. exf7 {[%clk 0:01:52]}  Qxd4+ {[%clk 0:00:31]} 29. Rxd4 {[%clk 0:01:53]}  g6 {[%clk 0:00:30]} 30. Rxd5 {[%clk 0:01:48]}  gxf5 {[%clk 0:00:30]} 31. Re8+ {[%clk 0:01:44]}  Rxe8 {[%clk 0:00:28]} 32. fxe8=Q+ {[%clk 0:01:44]}  Bxe8 {[%clk 0:00:29]} 33. Rd8 {[%clk 0:01:44]}  Kg7 {[%clk 0:00:24]} 34. Rxe8 {[%clk 0:01:45]} 1-0


[Site "https://www.chess.com"]

[Event "Titled Tuesday Blitz November 15 Early 2022"]
[White "Sharifov, Mekhriddin"]
[Black "Ter-Sahakyan, Samvel"]
[WhiteFideId "14701545"]
[BlackFideId "13302531"]
[WhiteElo "2109"]
[BlackElo "2584"]
[Result "1-0"]
[Round "04"]
[TimeControl "180+1"]
[Date "2022.11.16"]
[WhiteClock "0:00:08"]
[BlackClock "0:00:07"]

1. e4 {[%clk 0:03:00]}  c6 {[%clk 0:03:00]} 2. d4 {[%clk 0:03:00]}  d5 {[%clk 0:03:00]} 3. Nc3 {[%clk 0:03:01]}  dxe4 {[%clk 0:03:00]} 4. Nxe4 {[%clk 0:03:02]}  Bf5 {[%clk 0:03:01]} 5. Ng3 {[%clk 0:03:02]}  Bg6 {[%clk 0:03:01]} 6. h4 {[%clk 0:03:02]}  h6 {[%clk 0:03:01]} 7. Nf3 {[%clk 0:03:03]}  e6 {[%clk 0:03:01]} 8. Ne5 {[%clk 0:03:03]}  Bh7 {[%clk 0:03:00]} 9. Bd3 {[%clk 0:03:03]}  Bxd3 {[%clk 0:03:00]} 10. Qxd3 {[%clk 0:03:04]}  Nd7 {[%clk 0:03:00]} 11. Bf4 {[%clk 0:03:05]}  Qa5+ {[%clk 0:02:39]} 12. c3 {[%clk 0:03:02]}  Ngf6 {[%clk 0:02:38]} 13. O-O {[%clk 0:02:57]}  Nxe5 {[%clk 0:02:18]} 14. Bxe5 {[%clk 0:02:56]}  Be7 {[%clk 0:02:17]} 15. f4 {[%clk 0:02:39]}  Rd8 {[%clk 0:02:16]} 16. Qe2 {[%clk 0:02:21]}  O-O {[%clk 0:01:30]} 17. f5 {[%clk 0:02:20]}  Rde8 {[%clk 0:01:29]} 18. fxe6 {[%clk 0:01:51]}  fxe6 {[%clk 0:01:29]} 19. Nh5 {[%clk 0:01:50]}  Qd5 {[%clk 0:01:01]} 20. c4 {[%clk 0:01:38]}  Qd8 {[%clk 0:00:56]} 21. Nf4 {[%clk 0:01:24]}  Bd6 {[%clk 0:00:56]} 22. Ng6 {[%clk 0:01:13]}  Rf7 {[%clk 0:00:56]} 23. Rad1 {[%clk 0:01:06]}  a6 {[%clk 0:00:35]} 24. b3 {[%clk 0:01:05]}  b5 {[%clk 0:00:32]} 25. Kh1 {[%clk 0:00:48]}  Bc7 {[%clk 0:00:30]} 26. Rd3 {[%clk 0:00:33]}  Nh7 {[%clk 0:00:21]} 27. Rdf3 {[%clk 0:00:31]}  Rxf3 {[%clk 0:00:20]} 28. Qxf3 {[%clk 0:00:31]}  Qd7 {[%clk 0:00:13]} 29. Qf4 {[%clk 0:00:22]}  Bxe5 {[%clk 0:00:11]} 30. Qxe5 {[%clk 0:00:23]}  Nf6 {[%clk 0:00:10]} 31. Re1 {[%clk 0:00:08]}  Qf7 {[%clk 0:00:10]} 32. h5 {[%clk 0:00:07]}  Ng4 {[%clk 0:00:10]} 33. Qg3 {[%clk 0:00:06]}  Nf6 {[%clk 0:00:10]} 34. Qf3 {[%clk 0:00:05]}  bxc4 {[%clk 0:00:09]} 35. bxc4 {[%clk 0:00:05]}  Rd8 {[%clk 0:00:09]} 36. Rd1 {[%clk 0:00:04]}  c5 {[%clk 0:00:09]} 37. dxc5 {[%clk 0:00:04]}  Rc8 {[%clk 0:00:07]} 38. c6 {[%clk 0:00:04]}  Qc7 {[%clk 0:00:07]} 39. Kg1 {[%clk 0:00:02]}  Kh7 {[%clk 0:00:07]} 40. Qd3 {[%clk 0:00:02]}  Qb6+ {[%clk 0:00:06]} 41. Kh1 {[%clk 0:00:02]}  Ng4 {[%clk 0:00:05]} 42. Ne7+ {[%clk 0:00:02]}  Kh8 {[%clk 0:00:06]} 43. Nxc8 {[%clk 0:00:03]}  Nf2+ {[%clk 0:00:06]} 44. Kh2 {[%clk 0:00:03]}  Qc7+ {[%clk 0:00:06]} 45. Qd6 {[%clk 0:00:04]}  Qa5 {[%clk 0:00:05]} 46. Qd8+ {[%clk 0:00:04]}  Qxd8 {[%clk 0:00:04]} 47. Rxd8+ {[%clk 0:00:05]}  Kh7 {[%clk 0:00:04]} 48. Ne7 {[%clk 0:00:06]}  Ng4+ {[%clk 0:00:04]} 49. Kg3 {[%clk 0:00:06]}  Nf6 {[%clk 0:00:05]} 50. c7 {[%clk 0:00:07]}  Ne4+ {[%clk 0:00:06]} 51. Kf4 {[%clk 0:00:07]}  Nc5 {[%clk 0:00:07]} 52. c8=Q {[%clk 0:00:08]} 1-0


[Site "https://www.chess.com"]

[Event "Titled Tuesday Blitz November 15 Early 2022"]
[White "Shuvalov, Evgenij"]
[Black "Hambleton, Aman"]
[WhiteFideId "4187237"]
[BlackFideId "2606577"]
[WhiteElo "2049"]
[BlackElo "2538"]
[Result "0-1"]
[Round "04"]
[TimeControl "180+1"]
[Date "2022.11.16"]
[WhiteClock "0:00:11"]
[BlackClock "0:00:04"]

1. d4 {[%clk 0:02:51]}  b6 {[%clk 0:03:00]} 2. e4 {[%clk 0:02:50]}  Bb7 {[%clk 0:02:59]} 3. Bd3 {[%clk 0:02:50]}  e6 {[%clk 0:03:00]} 4. Nf3 {[%clk 0:02:50]}  d5 {[%clk 0:03:00]} 5. e5 {[%clk 0:02:50]}  Ba6 {[%clk 0:03:00]} 6. Bxa6 {[%clk 0:02:48]}  Nxa6 {[%clk 0:03:01]} 7. c3 {[%clk 0:02:47]}  Qd7 {[%clk 0:03:01]} 8. O-O {[%clk 0:02:45]}  Ne7 {[%clk 0:03:01]} 9. Na3 {[%clk 0:02:42]}  c5 {[%clk 0:02:57]} 10. Nc2 {[%clk 0:02:41]}  Nb8 {[%clk 0:02:51]} 11. b4 {[%clk 0:02:38]}  cxb4 {[%clk 0:02:42]} 12. cxb4 {[%clk 0:02:39]}  Qa4 {[%clk 0:02:42]} 13. Qe2 {[%clk 0:02:25]}  Nbc6 {[%clk 0:01:48]} 14. a3 {[%clk 0:02:12]}  Nf5 {[%clk 0:01:30]} 15. Bf4 {[%clk 0:02:07]}  Be7 {[%clk 0:01:23]} 16. Rfc1 {[%clk 0:01:45]}  O-O {[%clk 0:01:19]} 17. g4 {[%clk 0:01:33]}  Nh4 {[%clk 0:01:06]} 18. Nxh4 {[%clk 0:01:33]}  Bxh4 {[%clk 0:01:07]} 19. g5 {[%clk 0:01:33]}  Ne7 {[%clk 0:01:07]} 20. Ne3 {[%clk 0:01:21]}  Ng6 {[%clk 0:00:56]} 21. Bg3 {[%clk 0:01:21]}  Bxg5 {[%clk 0:00:53]} 22. Rc7 {[%clk 0:01:07]}  Rfc8 {[%clk 0:00:43]} 23. Rac1 {[%clk 0:01:06]}  Rxc7 {[%clk 0:00:37]} 24. Rxc7 {[%clk 0:01:07]}  Bd8 {[%clk 0:00:37]} 25. Rc3 {[%clk 0:01:04]}  Qd7 {[%clk 0:00:37]} 26. Qc2 {[%clk 0:01:03]}  Ne7 {[%clk 0:00:37]} 27. Bh4 {[%clk 0:00:52]}  h6 {[%clk 0:00:22]} 28. Bxe7 {[%clk 0:00:49]}  Qxe7 {[%clk 0:00:23]} 29. Rc8 {[%clk 0:00:46]}  Rxc8 {[%clk 0:00:16]} 30. Qxc8 {[%clk 0:00:47]}  Qc7 {[%clk 0:00:03]} 31. Qa8 {[%clk 0:00:46]}  Kh7 {[%clk 0:00:02]} 32. b5 {[%clk 0:00:42]}  Bg5 {[%clk 0:00:02]} 33. Kg2 {[%clk 0:00:36]}  Bxe3 {[%clk 0:00:02]} 34. fxe3 {[%clk 0:00:37]}  Qc2+ {[%clk 0:00:03]} 35. Kf3 {[%clk 0:00:36]}  Qe4+ {[%clk 0:00:03]} 36. Kf2 {[%clk 0:00:36]}  Qc2+ {[%clk 0:00:02]} 37. Kf3 {[%clk 0:00:37]}  Qxh2 {[%clk 0:00:02]} 38. Qxa7 {[%clk 0:00:34]}  Qh1+ {[%clk 0:00:03]} 39. Kf2 {[%clk 0:00:34]}  Qh2+ {[%clk 0:00:03]} 40. Kf3 {[%clk 0:00:34]}  Qh3+ {[%clk 0:00:03]} 41. Kf2 {[%clk 0:00:34]}  Qf5+ {[%clk 0:00:03]} 42. Ke2 {[%clk 0:00:34]}  Qc2+ {[%clk 0:00:02]} 43. Kf3 {[%clk 0:00:34]}  Qd3 {[%clk 0:00:02]} 44. a4 {[%clk 0:00:32]}  h5 {[%clk 0:00:02]} 45. a5 {[%clk 0:00:29]}  Qf1+ {[%clk 0:00:02]} 46. Kg3 {[%clk 0:00:28]}  Qg1+ {[%clk 0:00:02]} 47. Kf3 {[%clk 0:00:29]}  Qf1+ {[%clk 0:00:02]} 48. Kg3 {[%clk 0:00:29]}  bxa5 {[%clk 0:00:03]} 49. b6 {[%clk 0:00:28]}  Qg1+ {[%clk 0:00:03]} 50. Kf3 {[%clk 0:00:28]}  h4 {[%clk 0:00:03]} 51. b7 {[%clk 0:00:28]}  h3 {[%clk 0:00:04]} 52. b8=Q {[%clk 0:00:27]}  h2 {[%clk 0:00:04]} 53. Ke2 {[%clk 0:00:13]}  h1=Q {[%clk 0:00:05]} 54. Kd2 {[%clk 0:00:12]}  Qc1+ {[%clk 0:00:05]} 55. Kd3 {[%clk 0:00:11]}  Qhd1# {[%clk 0:00:04]} 0-1


[Site "https://www.chess.com"]

[Event "Titled Tuesday Blitz November 15 Early 2022"]
[White "Sipila, Vilka"]
[Black "Ibadov, Dashgyn"]
[WhiteFideId "505455"]
[BlackFideId "24107514"]
[WhiteElo "2347"]
[BlackElo "2208"]
[Result "1-0"]
[Round "04"]
[TimeControl "180+1"]
[Date "2022.11.16"]
[WhiteClock "0:01:01"]
[BlackClock "0:01:17"]

1. d4 {[%clk 0:03:00]}  Nf6 {[%clk 0:02:57]} 2. Bf4 {[%clk 0:03:00]}  d5 {[%clk 0:02:57]} 3. Nf3 {[%clk 0:03:00]}  c5 {[%clk 0:02:57]} 4. e3 {[%clk 0:02:59]}  Nc6 {[%clk 0:02:58]} 5. Nbd2 {[%clk 0:02:55]}  Bg4 {[%clk 0:02:55]} 6. h3 {[%clk 0:02:53]}  Bxf3 {[%clk 0:02:55]} 7. Nxf3 {[%clk 0:02:54]}  e6 {[%clk 0:02:56]} 8. Bb5 {[%clk 0:02:51]}  Nd7 {[%clk 0:02:51]} 9. c4 {[%clk 0:02:41]}  dxc4 {[%clk 0:02:48]} 10. O-O {[%clk 0:02:37]}  cxd4 {[%clk 0:02:43]} 11. Nxd4 {[%clk 0:02:26]}  e5 {[%clk 0:02:26]} 12. Nxc6 {[%clk 0:02:25]}  bxc6 {[%clk 0:02:26]} 13. Bxc6 {[%clk 0:02:26]}  exf4 {[%clk 0:02:26]} 14. exf4 {[%clk 0:02:11]}  Rc8 {[%clk 0:02:20]} 15. Re1+ {[%clk 0:02:02]}  Be7 {[%clk 0:02:20]} 16. Qd6 {[%clk 0:02:01]}  Rxc6 {[%clk 0:02:03]} 17. Qxc6 {[%clk 0:02:02]}  O-O {[%clk 0:02:04]} 18. Rad1 {[%clk 0:02:01]}  Nb8 {[%clk 0:02:04]} 19. Qxc4 {[%clk 0:01:22]}  Bd6 {[%clk 0:01:59]} 20. Qd4 {[%clk 0:01:21]}  Bc7 {[%clk 0:01:57]} 21. Qxa7 {[%clk 0:01:21]}  Bd6 {[%clk 0:01:40]} 22. Qd4 {[%clk 0:01:11]}  Bc7 {[%clk 0:01:39]} 23. Qxd8 {[%clk 0:01:10]}  Bxd8 {[%clk 0:01:40]} 24. b4 {[%clk 0:01:08]}  g6 {[%clk 0:01:36]} 25. a4 {[%clk 0:01:03]}  Nc6 {[%clk 0:01:26]} 26. Re4 {[%clk 0:01:02]}  Bf6 {[%clk 0:01:17]} 27. Rd6 {[%clk 0:01:01]} 1-0


[Site "https://www.chess.com"]

[Event "Titled Tuesday Blitz November 15 Early 2022"]
[White "Stribuk, Artiom"]
[Black "Caruana, Fabiano"]
[WhiteFideId "13515659"]
[BlackFideId "2020009"]
[WhiteElo "2371"]
[BlackElo "2847"]
[Result "0-1"]
[Round "04"]
[TimeControl "180+1"]
[Date "2022.11.15"]
[WhiteClock "0:00:02"]
[BlackClock "0:00:23"]

1. d4 {[%clk 0:03:00]}  Nf6 {[%clk 0:02:57]} 2. c4 {[%clk 0:03:01]}  e6 {[%clk 0:02:56]} 3. g3 {[%clk 0:03:01]}  Bb4+ {[%clk 0:02:56]} 4. Bd2 {[%clk 0:02:59]}  a5 {[%clk 0:02:56]} 5. Bg2 {[%clk 0:02:58]}  d5 {[%clk 0:02:57]} 6. Nf3 {[%clk 0:02:57]}  dxc4 {[%clk 0:02:53]} 7. Qc2 {[%clk 0:02:47]}  O-O {[%clk 0:02:52]} 8. Qxc4 {[%clk 0:02:38]}  b6 {[%clk 0:02:51]} 9. Bxb4 {[%clk 0:02:22]}  Ba6 {[%clk 0:02:49]} 10. Qc2 {[%clk 0:02:21]}  axb4 {[%clk 0:02:49]} 11. O-O {[%clk 0:02:22]}  Qe7 {[%clk 0:02:35]} 12. Rc1 {[%clk 0:01:47]}  Rc8 {[%clk 0:02:32]} 13. Ne5 {[%clk 0:01:33]}  Ra7 {[%clk 0:02:30]} 14. a3 {[%clk 0:01:21]}  Bb5 {[%clk 0:02:28]} 15. e3 {[%clk 0:00:54]}  c5 {[%clk 0:02:22]} 16. Nd2 {[%clk 0:00:50]}  bxa3 {[%clk 0:02:18]} 17. bxa3 {[%clk 0:00:51]}  Nbd7 {[%clk 0:02:14]} 18. Qb2 {[%clk 0:00:44]}  Ba4 {[%clk 0:02:13]} 19. Nd3 {[%clk 0:00:40]}  Rac7 {[%clk 0:02:06]} 20. dxc5 {[%clk 0:00:35]}  Nxc5 {[%clk 0:02:05]} 21. Nxc5 {[%clk 0:00:34]}  Rxc5 {[%clk 0:02:02]} 22. Ne4 {[%clk 0:00:24]}  Nxe4 {[%clk 0:01:51]} 23. Bxe4 {[%clk 0:00:25]}  f5 {[%clk 0:01:50]} 24. Bf3 {[%clk 0:00:22]}  Qf6 {[%clk 0:01:43]} 25. Qd2 {[%clk 0:00:20]}  h6 {[%clk 0:01:32]} 26. Kg2 {[%clk 0:00:19]}  Kh7 {[%clk 0:01:30]} 27. Rxc5 {[%clk 0:00:17]}  bxc5 {[%clk 0:01:31]} 28. Rc1 {[%clk 0:00:17]}  c4 {[%clk 0:01:26]} 29. Qc3 {[%clk 0:00:15]}  e5 {[%clk 0:01:22]} 30. Be2 {[%clk 0:00:14]}  Bc6+ {[%clk 0:01:21]} 31. Kg1 {[%clk 0:00:15]}  Ba8 {[%clk 0:01:17]} 32. Rd1 {[%clk 0:00:07]}  Qc6 {[%clk 0:01:16]} 33. f3 {[%clk 0:00:08]}  Qe6 {[%clk 0:01:06]} 34. Kf2 {[%clk 0:00:07]}  f4 {[%clk 0:00:58]} 35. exf4 {[%clk 0:00:05]}  exf4 {[%clk 0:00:59]} 36. gxf4 {[%clk 0:00:05]}  Qh3 {[%clk 0:00:55]} 37. Rg1 {[%clk 0:00:05]}  Qxh2+ {[%clk 0:00:54]} 38. Rg2 {[%clk 0:00:06]}  Qh4+ {[%clk 0:00:55]} 39. Kf1 {[%clk 0:00:06]}  Qe7 {[%clk 0:00:49]} 40. Bxc4 {[%clk 0:00:05]}  Kh8 {[%clk 0:00:46]} 41. Qd4 {[%clk 0:00:03]}  Bxf3 {[%clk 0:00:45]} 42. Rg3 {[%clk 0:00:03]}  Bb7 {[%clk 0:00:41]} 43. Be2 {[%clk 0:00:03]}  Re8 {[%clk 0:00:39]} 44. Qd2 {[%clk 0:00:02]}  Qh4 {[%clk 0:00:38]} 45. Qc3 {[%clk 0:00:01]}  Qe7 {[%clk 0:00:34]} 46. Qd2 {[%clk 0:00:01]}  Bc8 {[%clk 0:00:32]} 47. Kf2 {[%clk 0:00:02]}  Bf5 {[%clk 0:00:30]} 48. Bf3 {[%clk 0:00:02]}  Qc5+ {[%clk 0:00:28]} 49. Kg2 {[%clk 0:00:03]}  Qe7 {[%clk 0:00:27]} 50. Qf2 {[%clk 0:00:03]}  Rc8 {[%clk 0:00:27]} 51. Bd1 {[%clk 0:00:02]}  Be4+ {[%clk 0:00:27]} 52. Kg1 {[%clk 0:00:02]}  Rc1 {[%clk 0:00:27]} 53. Qd2 {[%clk 0:00:02]}  Qc5+ {[%clk 0:00:26]} 54. Kh2 {[%clk 0:00:02]}  Qc7 {[%clk 0:00:23]} 55. Bb3 {[%clk 0:00:02]}  Rh1# {[%clk 0:00:23]} 0-1


[Site "https://www.chess.com"]

[Event "Titled Tuesday Blitz November 15 Early 2022"]
[White "Svane, Rasmus"]
[Black "Donchenko, Alexander"]
[WhiteFideId "4657101"]
[BlackFideId "24603295"]
[WhiteElo "2674"]
[BlackElo "2572"]
[Result "1-0"]
[Round "04"]
[TimeControl "180+1"]
[Date "2022.11.15"]
[WhiteClock "0:00:25"]
[BlackClock "0:00:02"]

1. Nf3 {[%clk 0:03:00]}  Nf6 {[%clk 0:02:59]} 2. g3 {[%clk 0:03:01]}  g6 {[%clk 0:02:59]} 3. Bg2 {[%clk 0:03:01]}  Bg7 {[%clk 0:03:00]} 4. O-O {[%clk 0:03:02]}  O-O {[%clk 0:03:01]} 5. d4 {[%clk 0:03:03]}  d6 {[%clk 0:03:01]} 6. Re1 {[%clk 0:03:03]}  Bf5 {[%clk 0:02:51]} 7. Nbd2 {[%clk 0:02:54]}  d5 {[%clk 0:02:50]} 8. Nh4 {[%clk 0:02:51]}  Be6 {[%clk 0:02:46]} 9. c3 {[%clk 0:02:49]}  Nbd7 {[%clk 0:02:41]} 10. e4 {[%clk 0:02:49]}  dxe4 {[%clk 0:02:40]} 11. Nxe4 {[%clk 0:02:50]}  Nxe4 {[%clk 0:02:39]} 12. Bxe4 {[%clk 0:02:51]}  c6 {[%clk 0:02:39]} 13. Bg2 {[%clk 0:02:45]}  Bd5 {[%clk 0:02:36]} 14. Bxd5 {[%clk 0:02:39]}  cxd5 {[%clk 0:02:37]} 15. Bg5 {[%clk 0:02:38]}  Re8 {[%clk 0:02:32]} 16. Nf3 {[%clk 0:02:38]}  Qb6 {[%clk 0:02:30]} 17. Re2 {[%clk 0:02:37]}  e6 {[%clk 0:02:27]} 18. h4 {[%clk 0:02:36]}  Nf6 {[%clk 0:02:10]} 19. Bxf6 {[%clk 0:02:36]}  Bxf6 {[%clk 0:02:10]} 20. h5 {[%clk 0:02:34]}  Qc7 {[%clk 0:01:40]} 21. Kg2 {[%clk 0:02:33]}  b5 {[%clk 0:01:39]} 22. Qd2 {[%clk 0:02:32]}  a5 {[%clk 0:01:22]} 23. Rh1 {[%clk 0:02:30]}  Bg7 {[%clk 0:01:17]} 24. hxg6 {[%clk 0:02:26]}  hxg6 {[%clk 0:01:17]} 25. Qg5 {[%clk 0:02:26]}  Qd8 {[%clk 0:01:11]} 26. Qg4 {[%clk 0:02:26]}  Qf6 {[%clk 0:00:57]} 27. Re3 {[%clk 0:02:22]}  Qf5 {[%clk 0:00:44]} 28. Qh4 {[%clk 0:02:22]}  Bf6 {[%clk 0:00:40]} 29. Qh7+ {[%clk 0:02:15]}  Kf8 {[%clk 0:00:40]} 30. Ne5 {[%clk 0:02:13]}  Bxe5 {[%clk 0:00:30]} 31. Rf3 {[%clk 0:01:37]}  Qxf3+ {[%clk 0:00:25]} 32. Kxf3 {[%clk 0:01:38]}  Bf6 {[%clk 0:00:26]} 33. Qh6+ {[%clk 0:01:36]}  Kg8 {[%clk 0:00:21]} 34. Qf4 {[%clk 0:01:28]}  Bg7 {[%clk 0:00:22]} 35. Rc1 {[%clk 0:01:16]}  Reb8 {[%clk 0:00:21]} 36. a3 {[%clk 0:01:10]}  Bf8 {[%clk 0:00:21]} 37. Kg2 {[%clk 0:01:06]}  Rb7 {[%clk 0:00:21]} 38. Qf3 {[%clk 0:01:03]}  Rba7 {[%clk 0:00:19]} 39. Qd3 {[%clk 0:01:03]}  Rb7 {[%clk 0:00:15]} 40. Rc2 {[%clk 0:01:03]}  Rab8 {[%clk 0:00:14]} 41. Re2 {[%clk 0:01:02]}  Bd6 {[%clk 0:00:14]} 42. Rxe6 {[%clk 0:00:51]}  fxe6 {[%clk 0:00:12]} 43. Qxg6+ {[%clk 0:00:52]}  Kh8 {[%clk 0:00:11]} 44. Qxe6 {[%clk 0:00:51]}  Bf8 {[%clk 0:00:10]} 45. Qxd5 {[%clk 0:00:51]}  Bg7 {[%clk 0:00:08]} 46. Qd6 {[%clk 0:00:36]}  Rb6 {[%clk 0:00:07]} 47. Qc5 {[%clk 0:00:34]}  Re6 {[%clk 0:00:06]} 48. Qc7 {[%clk 0:00:33]}  Ra8 {[%clk 0:00:04]} 49. Qd7 {[%clk 0:00:32]}  Re2 {[%clk 0:00:03]} 50. Qxb5 {[%clk 0:00:31]}  Rd2 {[%clk 0:00:02]} 51. Qh5+ {[%clk 0:00:25]} 1-0


[Site "https://www.chess.com"]

[Event "Titled Tuesday Blitz November 15 Early 2022"]
[White "Taboas Rodriguez, Daniel"]
[Black "Salinas Herrera, Pablo"]
[WhiteFideId "2208466"]
[BlackFideId "3407128"]
[WhiteElo "2329"]
[BlackElo "2557"]
[Result "0-1"]
[Round "04"]
[TimeControl "180+1"]
[Date "2022.11.16"]
[WhiteClock "0:00:04"]
[BlackClock "0:00:48"]

1. d4 {[%clk 0:02:58]}  d5 {[%clk 0:02:59]} 2. Nf3 {[%clk 0:02:58]}  Nf6 {[%clk 0:02:59]} 3. c4 {[%clk 0:02:58]}  c6 {[%clk 0:02:58]} 4. cxd5 {[%clk 0:02:58]}  cxd5 {[%clk 0:02:59]} 5. Nc3 {[%clk 0:02:59]}  Nc6 {[%clk 0:02:59]} 6. Bf4 {[%clk 0:02:59]}  Ne4 {[%clk 0:03:00]} 7. e3 {[%clk 0:02:59]}  e6 {[%clk 0:03:00]} 8. Bd3 {[%clk 0:02:58]}  g5 {[%clk 0:03:00]} 9. Bg3 {[%clk 0:02:56]}  h5 {[%clk 0:03:00]} 10. Nxe4 {[%clk 0:02:30]}  dxe4 {[%clk 0:02:57]} 11. Bxe4 {[%clk 0:02:31]}  h4 {[%clk 0:02:56]} 12. Be5 {[%clk 0:02:31]}  f6 {[%clk 0:02:57]} 13. Bg6+ {[%clk 0:02:31]}  Ke7 {[%clk 0:02:42]} 14. O-O {[%clk 0:02:10]}  Rh6 {[%clk 0:02:21]} 15. Be4 {[%clk 0:02:02]}  fxe5 {[%clk 0:02:18]} 16. Nxg5 {[%clk 0:02:03]}  exd4 {[%clk 0:02:14]} 17. Qf3 {[%clk 0:02:01]}  Ne5 {[%clk 0:02:05]} 18. Qf4 {[%clk 0:01:57]}  Bg7 {[%clk 0:01:28]} 19. exd4 {[%clk 0:01:24]}  Qxd4 {[%clk 0:01:29]} 20. Rad1 {[%clk 0:01:23]}  Qb6 {[%clk 0:01:29]} 21. Rfe1 {[%clk 0:01:02]}  Bd7 {[%clk 0:01:28]} 22. Bf5 {[%clk 0:00:42]}  Qc7 {[%clk 0:00:55]} 23. Rxd7+ {[%clk 0:00:04]}  Kxd7 {[%clk 0:00:48]} 0-1


[Site "https://www.chess.com"]